[Event "*** Titled Tuesday Blitz"]
[Site "Chess.com"]
[Date "2019.08.06"]
[Round "5"]
[White "IMRosen"]
[Black "Bathory44"]
[Result "1-0"]
[WhiteElo "2627"]
[BlackElo "2581"]
[TimeControl "180+2"]
[EndTime "14:06:13 PDT"]
[Termination "IMRosen won by resignation"]

1. d4 {[%clk 0:03:01.9]} 1... e6 {[%clk 0:02:56.7]} 2. Bf4 {[%clk 0:03:03.1]}
2... c5 {[%clk 0:02:56.6]} 3. e3 {[%clk 0:03:04.2]} 3... Nc6 {[%clk 0:02:55.7]}
4. Nf3 {[%clk 0:03:05.3]} 4... d5 {[%clk 0:02:55.6]} 5. Nbd2 {[%clk 0:02:58.9]}
5... Bd6 {[%clk 0:02:55.3]} 6. Bg3 {[%clk 0:02:58.3]} 6... Nge7 {[%clk
0:02:55.7]} 7. c3 {[%clk 0:02:58.8]} 7... Nf5 {[%clk 0:02:54.1]} 8. Bd3 {[%clk
0:02:58.6]} 8... Nxg3 {[%clk 0:02:52.1]} 9. hxg3 {[%clk 0:03:00.5]} 9... h6
{[%clk 0:02:50.4]} 10. Qe2 {[%clk 0:02:58.7]} 10... Be7 {[%clk 0:02:38.4]} 11.
Ne5 {[%clk 0:02:47.7]} 11... Nxe5 {[%clk 0:02:30.5]} 12. dxe5 {[%clk 0:02:49.6]}
12... Qc7 {[%clk 0:02:25.7]} 13. f4 {[%clk 0:02:49.8]} 13... Bd7 {[%clk
0:02:27.1]} 14. Bb5 {[%clk 0:02:36.2]} 14... O-O-O {[%clk 0:02:26.9]} 15. Bxd7+
{[%clk 0:02:36.4]} 15... Rxd7 {[%clk 0:02:21.9]} 16. O-O-O {[%clk 0:02:37.9]}
16... Kb8 {[%clk 0:02:22.5]} 17. Kb1 {[%clk 0:02:37.2]} 17... c4 {[%clk
0:02:01.9]} 18. Nf3 {[%clk 0:02:19.8]} 18... Bc5 {[%clk 0:02:02.1]} 19. e4
{[%clk 0:02:17.1]} 19... Rhd8 {[%clk 0:02:01.2]} 20. Rd2 {[%clk 0:01:51.8]}
20... dxe4 {[%clk 0:01:48.6]} 21. Rxd7 {[%clk 0:01:53.7]} 21... Qxd7 {[%clk
0:01:39.3]} 22. Qxe4 {[%clk 0:01:54]} 22... b5 {[%clk 0:01:40.1]} 23. Kc2 {[%clk
0:01:48.9]} 23... Qd3+ {[%clk 0:01:22.4]} 24. Qxd3 {[%clk 0:01:49.2]} 24... Rxd3
{[%clk 0:01:23.1]} 25. Rd1 {[%clk 0:01:27.2]} 25... Rxd1 {[%clk 0:01:19.8]} 26.
Kxd1 {[%clk 0:01:29.1]} 26... Bf2 {[%clk 0:01:10.2]} 27. g4 {[%clk 0:01:23.5]}
27... Bg3 {[%clk 0:01:08.9]} 28. f5 {[%clk 0:01:17.2]} 28... a6 {[%clk
0:00:53.3]} 29. Ke2 {[%clk 0:01:14]} 29... Kc7 {[%clk 0:00:52.6]} 30. Ke3 {[%clk
0:01:09.6]} 30... Kd7 {[%clk 0:00:33.1]} 31. Ke4 {[%clk 0:01:08.4]} 31... Bf2
{[%clk 0:00:30.9]} 32. Nd2 {[%clk 0:00:46.3]} 32... g6 {[%clk 0:00:28.2]} 33.
Nf3 {[%clk 0:00:34.4]} 33... Bb6 {[%clk 0:00:23.2]} 34. fxg6 {[%clk 0:00:26.4]}
34... fxg6 {[%clk 0:00:23.8]} 35. g5 {[%clk 0:00:23.5]} 35... h5 {[%clk
0:00:24.5]} 36. Nh4 {[%clk 0:00:22]} 36... Bd8 {[%clk 0:00:23.8]} 37. Kf4 {[%clk
0:00:18.5]} 37... a5 {[%clk 0:00:16]} 38. Nxg6 {[%clk 0:00:18.9]} 38... b4
{[%clk 0:00:17.3]} 39. Nh4 {[%clk 0:00:15.3]} 39... a4 {[%clk 0:00:18.3]} 40.
Nf3 {[%clk 0:00:07.7]} 40... a3 {[%clk 0:00:18.8]} 41. bxa3 {[%clk 0:00:09.2]}
41... bxc3 {[%clk 0:00:20]} 42. Ne1 {[%clk 0:00:10.6]} 42... Be7 {[%clk
0:00:19.2]} 43. Nc2 {[%clk 0:00:11.3]} 43... Bf8 {[%clk 0:00:19.7]} 44. Ke4
{[%clk 0:00:11.3]} 44... Kc6 {[%clk 0:00:21.2]} 45. Kd4 {[%clk 0:00:11.5]} 45...
Kb5 {[%clk 0:00:22.1]} 46. g6 {[%clk 0:00:10.5]} 46... Bg7 {[%clk 0:00:23]} 47.
a4+ {[%clk 0:00:06.8]} 47... Kxa4 {[%clk 0:00:22.3]} 48. Kxc4 {[%clk 0:00:08.2]}
48... Bxe5 {[%clk 0:00:23]} 49. Nb4 {[%clk 0:00:03.6]} 49... Bg7 {[%clk
0:00:24.3]} 50. Nc2 {[%clk 0:00:04.8]} 50... Bf6 {[%clk 0:00:24.8]} 51. Kd3
{[%clk 0:00:05.9]} 51... Bg7 {[%clk 0:00:23.8]} 52. Ke4 {[%clk 0:00:05.8]} 52...
Kb5 {[%clk 0:00:23.9]} 53. Kd3 {[%clk 0:00:06.8]} 53... Ka4 {[%clk 0:00:24.9]}
54. Kc4 {[%clk 0:00:07.9]} 54... Bf6 {[%clk 0:00:25.6]} 55. Kc5 {[%clk
0:00:08.1]} 55... Be5 {[%clk 0:00:21.5]} 56. Kc6 {[%clk 0:00:08]} 56... Bg7
{[%clk 0:00:20.5]} 57. Kd6 {[%clk 0:00:08.7]} 57... Kb5 {[%clk 0:00:21.9]} 58.
Kxe6 {[%clk 0:00:08.7]} 58... Kc4 {[%clk 0:00:23.4]} 59. Kf7 {[%clk 0:00:10.3]}
59... Bh6 {[%clk 0:00:24.5]} 60. g7 {[%clk 0:00:11.5]} 60... Bxg7 {[%clk
0:00:25.8]} 61. Kxg7 {[%clk 0:00:13.4]} 61... Kd3 {[%clk 0:00:27.1]} 62. Na3
{[%clk 0:00:14.4]} 62... h4 {[%clk 0:00:26.4]} 63. Kg6 {[%clk 0:00:15.3]} 63...
Ke3 {[%clk 0:00:26.9]} 64. Kg5 {[%clk 0:00:15.6]} 64... Kf2 {[%clk 0:00:28.3]}
65. Kxh4 {[%clk 0:00:12.8]} 65... Kxg2 {[%clk 0:00:30.2]} 66. Nc2 {[%clk
0:00:11.7]} 66... Kf2 {[%clk 0:00:31.1]} 67. a4 {[%clk 0:00:12.5]} 67... Ke2
{[%clk 0:00:31.8]} 68. a5 {[%clk 0:00:14.1]} 68... Kd2 {[%clk 0:00:33.3]} 69.
Na3 {[%clk 0:00:15.2]} 69... Kc1 {[%clk 0:00:34.2]} 70. a6 {[%clk 0:00:16.7]}
70... Kb2 {[%clk 0:00:35.7]} 71. Nc4+ {[%clk 0:00:16.9]} 71... Kb3 {[%clk
0:00:35.8]} 72. Ne3 {[%clk 0:00:17.6]} 1-0

[Event "*** Titled Tuesday Blitz"]
[Site "Chess.com"]
[Date "2019.08.06"]
[Round "5"]
[White "Fandorine"]
[Black "Vuk2000"]
[Result "1/2-1/2"]
[WhiteElo "2878"]
[BlackElo "2728"]
[TimeControl "180+2"]
[EndTime "14:06:27 PDT"]
[Termination "Game drawn by repetition"]

1. e4 {[%clk 0:03:01.9]} 1... e6 {[%clk 0:03:01.1]} 2. d4 {[%clk 0:03:02.4]}
2... d5 {[%clk 0:03:02.7]} 3. Nd2 {[%clk 0:03:01.6]} 3... Be7 {[%clk 0:03:02.9]}
4. Ngf3 {[%clk 0:03:00.2]} 4... Nf6 {[%clk 0:03:02.6]} 5. e5 {[%clk 0:02:58.6]}
5... Nfd7 {[%clk 0:03:03.7]} 6. c3 {[%clk 0:03:00]} 6... c5 {[%clk 0:03:04.7]}
7. Bd3 {[%clk 0:03:01.5]} 7... b6 {[%clk 0:03:06.1]} 8. O-O {[%clk 0:03:02.5]}
8... Ba6 {[%clk 0:03:06.9]} 9. Bxa6 {[%clk 0:03:03.7]} 9... Nxa6 {[%clk
0:03:08.8]} 10. Re1 {[%clk 0:03:01.7]} 10... b5 {[%clk 0:02:56.1]} 11. a3 {[%clk
0:02:54.7]} 11... Nab8 {[%clk 0:02:41.1]} 12. Nf1 {[%clk 0:02:37.9]} 12... Nc6
{[%clk 0:02:41.6]} 13. Ng3 {[%clk 0:02:38.8]} 13... h5 {[%clk 0:02:32.1]} 14. h3
{[%clk 0:02:31.2]} 14... cxd4 {[%clk 0:02:11.3]} 15. cxd4 {[%clk 0:02:25.5]}
15... Rc8 {[%clk 0:01:51.5]} 16. Bd2 {[%clk 0:02:14.7]} 16... g5 {[%clk
0:01:18.1]} 17. Be3 {[%clk 0:02:04.5]} 17... Na5 {[%clk 0:01:17.5]} 18. b3
{[%clk 0:01:58.4]} 18... g4 {[%clk 0:00:36.9]} 19. hxg4 {[%clk 0:01:57.8]} 19...
hxg4 {[%clk 0:00:38.8]} 20. Nh2 {[%clk 0:01:57.9]} 20... Rc3 {[%clk 0:00:39.3]}
21. Bd2 {[%clk 0:01:48.4]} 21... Rd3 {[%clk 0:00:40.1]} 22. Qe2 {[%clk
0:01:27.8]} 22... Rxd2 {[%clk 0:00:28.5]} 23. Qxd2 {[%clk 0:01:28.7]} 23... Nxb3
{[%clk 0:00:30]} 24. Qd3 {[%clk 0:01:24.9]} 24... Nxa1 {[%clk 0:00:30.7]} 25.
Rxa1 {[%clk 0:01:26.8]} 25... Qa5 {[%clk 0:00:24.6]} 26. Nxg4 {[%clk 0:01:25.9]}
26... b4 {[%clk 0:00:25.5]} 27. a4 {[%clk 0:01:27.2]} 27... Nb6 {[%clk
0:00:23.2]} 28. Ne3 {[%clk 0:01:27.3]} 28... Kd7 {[%clk 0:00:22.5]} 29. Ne2
{[%clk 0:01:23.5]} 29... Rc8 {[%clk 0:00:21]} 30. Qh7 {[%clk 0:01:23.3]} 30...
b3 {[%clk 0:00:19.5]} 31. Qxf7 {[%clk 0:01:17.4]} 31... b2 {[%clk 0:00:16.7]}
32. Rb1 {[%clk 0:01:08.5]} 32... Qd2 {[%clk 0:00:17.8]} 33. Qf3 {[%clk
0:00:41.5]} 33... Rc1+ {[%clk 0:00:13.8]} 34. Nxc1 {[%clk 0:00:42]} 34...
bxc1=Q+ {[%clk 0:00:15.2]} 35. Rxc1 {[%clk 0:00:43.9]} 35... Qxc1+ {[%clk
0:00:16.7]} 36. Kh2 {[%clk 0:00:45.8]} 36... Nxa4 {[%clk 0:00:12.2]} 37. Qf7
{[%clk 0:00:46.8]} 37... Nb6 {[%clk 0:00:10.7]} 38. Ng4 {[%clk 0:00:48.1]} 38...
Qa3 {[%clk 0:00:06.6]} 39. f4 {[%clk 0:00:47.7]} 39... a5 {[%clk 0:00:05.6]} 40.
Nf6+ {[%clk 0:00:43.3]} 40... Kc7 {[%clk 0:00:06.9]} 41. Qxe6 {[%clk 0:00:44.6]}
41... Bxf6 {[%clk 0:00:08]} 42. Qxf6 {[%clk 0:00:36.9]} 42... a4 {[%clk
0:00:09.3]} 43. e6 {[%clk 0:00:37.6]} 43... Nc8 {[%clk 0:00:09.4]} 44. Qf5
{[%clk 0:00:30.9]} 44... Qd6 {[%clk 0:00:10.2]} 45. g3 {[%clk 0:00:32]} 45... a3
{[%clk 0:00:11.3]} 46. Qc2+ {[%clk 0:00:33.6]} 46... Kd8 {[%clk 0:00:12.6]} 47.
f5 {[%clk 0:00:35]} 47... Nb6 {[%clk 0:00:05.7]} 48. Qd2 {[%clk 0:00:25.3]}
48... Qe7 {[%clk 0:00:06.1]} 49. Qa5 {[%clk 0:00:25]} 49... Qd6 {[%clk 0:00:06]}
50. Kh3 {[%clk 0:00:23.9]} 50... Ke7 {[%clk 0:00:07]} 51. Kg4 {[%clk 0:00:21.6]}
51... Nc4 {[%clk 0:00:05]} 52. Qa7+ {[%clk 0:00:22.9]} 52... Kd8 {[%clk
0:00:05]} 53. Qa8+ {[%clk 0:00:22.2]} 53... Kc7 {[%clk 0:00:05.6]} 54. Qa7+
{[%clk 0:00:23.5]} 54... Kc8 {[%clk 0:00:06.6]} 55. e7 {[%clk 0:00:18.1]} 55...
Qc6 {[%clk 0:00:02.5]} 56. f6 {[%clk 0:00:19.6]} 56... Qe6+ {[%clk 0:00:03.1]}
57. Kg5 {[%clk 0:00:16.8]} 57... Nd6 {[%clk 0:00:04.8]} 58. Qa8+ {[%clk
0:00:13.4]} 58... Kc7 {[%clk 0:00:06.3]} 59. Qd8+ {[%clk 0:00:13.5]} 59... Kc6
{[%clk 0:00:07.2]} 60. Qa8+ {[%clk 0:00:12.4]} 60... Kb5 {[%clk 0:00:08.2]} 61.
Qb8+ {[%clk 0:00:10.2]} 61... Kc6 {[%clk 0:00:09.5]} 62. Qa8+ {[%clk 0:00:10.5]}
62... Kb5 {[%clk 0:00:10.1]} 63. Qb8+ {[%clk 0:00:10.5]} 63... Kc6 {[%clk
0:00:10.8]} 64. Qa8+ {[%clk 0:00:09.1]} 1/2-1/2

[Event "*** Titled Tuesday Blitz"]
[Site "Chess.com"]
[Date "2019.08.06"]
[Round "5"]
[White "Wolverine_master"]
[Black "Karina_Ivanova"]
[Result "1/2-1/2"]
[WhiteElo "2119"]
[BlackElo "2173"]
[TimeControl "180+2"]
[EndTime "14:06:27 PDT"]
[Termination "Game drawn by repetition"]

1. e4 {[%clk 0:03:00.8]} 1... c6 {[%clk 0:02:59.3]} 2. d4 {[%clk 0:02:58.7]}
2... d5 {[%clk 0:02:57.2]} 3. Nc3 {[%clk 0:02:59.8]} 3... dxe4 {[%clk
0:02:57.7]} 4. Nxe4 {[%clk 0:03:00.8]} 4... Nf6 {[%clk 0:02:58.2]} 5. Nxf6+
{[%clk 0:02:55.2]} 5... exf6 {[%clk 0:02:59]} 6. Nf3 {[%clk 0:02:56.7]} 6... Bd6
{[%clk 0:02:59.5]} 7. Bd3 {[%clk 0:02:54.4]} 7... O-O {[%clk 0:02:53.9]} 8. O-O
{[%clk 0:02:55]} 8... Bg4 {[%clk 0:02:50.6]} 9. h3 {[%clk 0:02:55.5]} 9... Bh5
{[%clk 0:02:49.9]} 10. c3 {[%clk 0:02:56.2]} 10... Re8 {[%clk 0:02:49.5]} 11.
Be3 {[%clk 0:02:56.8]} 11... Nd7 {[%clk 0:02:49.9]} 12. Be2 {[%clk 0:02:57.8]}
12... Qc7 {[%clk 0:02:48.4]} 13. Qc2 {[%clk 0:01:38.2]} 13... Rad8 {[%clk
0:02:39.1]} 14. Rfe1 {[%clk 0:01:30.3]} 14... c5 {[%clk 0:02:30.6]} 15. Rad1
{[%clk 0:01:24.3]} 15... Bg6 {[%clk 0:02:27.2]} 16. Bd3 {[%clk 0:01:24.8]} 16...
c4 {[%clk 0:02:28.1]} 17. Bxg6 {[%clk 0:01:25]} 17... hxg6 {[%clk 0:02:28.8]}
18. Qa4 {[%clk 0:00:52.1]} 18... a6 {[%clk 0:02:27.8]} 19. Nd2 {[%clk
0:00:52.2]} 19... Nb6 {[%clk 0:02:28.4]} 20. Qc2 {[%clk 0:00:52.3]} 20... f5
{[%clk 0:02:24.7]} 21. Nf3 {[%clk 0:00:44.5]} 21... Nd5 {[%clk 0:02:24.4]} 22.
Bd2 {[%clk 0:00:44.5]} 22... b5 {[%clk 0:02:24.5]} 23. Rxe8+ {[%clk 0:00:44.5]}
23... Rxe8 {[%clk 0:02:24.9]} 24. Re1 {[%clk 0:00:39.3]} 24... Rxe1+ {[%clk
0:02:23.2]} 25. Bxe1 {[%clk 0:00:41.2]} 25... Qe7 {[%clk 0:02:18.8]} 26. Kf1
{[%clk 0:00:41.3]} 26... Qe4 {[%clk 0:02:15.7]} 27. Qxe4 {[%clk 0:00:40.6]}
27... fxe4 {[%clk 0:02:16.2]} 28. Nd2 {[%clk 0:00:40.1]} 28... f5 {[%clk
0:02:16.7]} 29. g3 {[%clk 0:00:38.1]} 29... Kf7 {[%clk 0:02:10.1]} 30. Ke2
{[%clk 0:00:39]} 30... Ke6 {[%clk 0:02:09.6]} 31. f3 {[%clk 0:00:40.4]} 31...
Nf6 {[%clk 0:01:44.3]} 32. Ke3 {[%clk 0:00:33]} 32... Kd5 {[%clk 0:01:40.8]} 33.
g4 {[%clk 0:00:27.7]} 33... a5 {[%clk 0:01:14.3]} 34. Bh4 {[%clk 0:00:27]} 34...
f4+ {[%clk 0:01:06.2]} 35. Ke2 {[%clk 0:00:25]} 35... e3 {[%clk 0:01:00.6]} 36.
Bxf6 {[%clk 0:00:22.6]} 36... gxf6 {[%clk 0:00:57.9]} 37. Ne4 {[%clk 0:00:23.2]}
37... Be7 {[%clk 0:00:53.6]} 38. h4 {[%clk 0:00:24.2]} 38... f5 {[%clk 0:00:54]}
39. gxf5 {[%clk 0:00:08.5]} 39... gxf5 {[%clk 0:00:52.5]} 40. Ng5 {[%clk
0:00:09.3]} 40... Bf6 {[%clk 0:00:45.9]} 41. Nf7 {[%clk 0:00:07.6]} 41... Bxh4
{[%clk 0:00:44.9]} 42. Nh6 {[%clk 0:00:07.4]} 42... Be7 {[%clk 0:00:41.3]} 43.
Nxf5 {[%clk 0:00:07.8]} 43... Bf8 {[%clk 0:00:42.2]} 44. Nh4 {[%clk 0:00:07.6]}
44... b4 {[%clk 0:00:42.3]} 45. Ng6 {[%clk 0:00:08.3]} 45... Bd6 {[%clk
0:00:42.9]} 46. Nh4 {[%clk 0:00:06.5]} 46... bxc3 {[%clk 0:00:37]} 47. bxc3
{[%clk 0:00:08.4]} 47... Ba3 {[%clk 0:00:32.2]} 48. Ng6 {[%clk 0:00:09.4]} 48...
Bd6 {[%clk 0:00:33]} 49. Nh4 {[%clk 0:00:10.4]} 49... Ke6 {[%clk 0:00:33.4]} 50.
Ng2 {[%clk 0:00:08.8]} 50... Kf5 {[%clk 0:00:32.7]} 51. Nh4+ {[%clk 0:00:09.1]}
51... Kg5 {[%clk 0:00:33.1]} 52. Ng2 {[%clk 0:00:10.6]} 52... Ba3 {[%clk
0:00:34.1]} 53. Kd1 {[%clk 0:00:09.6]} 53... Kf5 {[%clk 0:00:33]} 54. Kc2 {[%clk
0:00:10.8]} 54... Bd6 {[%clk 0:00:29]} 55. Kd1 {[%clk 0:00:11.3]} 55... a4
{[%clk 0:00:29.5]} 56. Kc2 {[%clk 0:00:12.1]} 56... Ke6 {[%clk 0:00:27.3]} 57.
Kd1 {[%clk 0:00:11.4]} 57... Kd5 {[%clk 0:00:28]} 58. Nh4 {[%clk 0:00:10.6]}
58... Be7 {[%clk 0:00:26.6]} 59. Ng6 {[%clk 0:00:09.1]} 59... Bd6 {[%clk
0:00:26.1]} 60. Nh4 {[%clk 0:00:10.1]} 60... Be7 {[%clk 0:00:26.1]} 61. Ng6
{[%clk 0:00:10.8]} 61... Bg5 {[%clk 0:00:26.9]} 62. Nf8 {[%clk 0:00:06.9]} 62...
Be7 {[%clk 0:00:25.2]} 63. Ng6 {[%clk 0:00:07.3]} 1/2-1/2

[Event "*** Titled Tuesday Blitz"]
[Site "Chess.com"]
[Date "2019.08.06"]
[Round "5"]
[White "leclash"]
[Black "Samantha_Ross"]
[Result "0-1"]
[WhiteElo "2194"]
[BlackElo "2097"]
[TimeControl "180+2"]
[EndTime "14:06:30 PDT"]
[Termination "Samantha_Ross won by checkmate"]

1. d4 {[%clk 0:03:01.9]} 1... d6 {[%clk 0:03:01]} 2. c4 {[%clk 0:02:57.4]} 2...
e5 {[%clk 0:03:02.4]} 3. Nc3 {[%clk 0:02:58.4]} 3... exd4 {[%clk 0:03:03.2]} 4.
Qxd4 {[%clk 0:03:00.3]} 4... Nc6 {[%clk 0:03:04.6]} 5. Qd2 {[%clk 0:02:59.7]}
5... g6 {[%clk 0:03:05.3]} 6. b3 {[%clk 0:03:00.6]} 6... Bg7 {[%clk 0:03:06.6]}
7. Bb2 {[%clk 0:03:01.5]} 7... Nge7 {[%clk 0:03:08.1]} 8. g3 {[%clk 0:02:59.5]}
8... O-O {[%clk 0:03:05.7]} 9. Nh3 {[%clk 0:03:00]} 9... Nf5 {[%clk 0:02:31.5]}
10. Nf4 {[%clk 0:02:56.6]} 10... Re8 {[%clk 0:02:31.3]} 11. Bg2 {[%clk
0:02:54.1]} 11... Nfd4 {[%clk 0:02:31.1]} 12. O-O {[%clk 0:02:50.9]} 12... Bf5
{[%clk 0:02:29]} 13. e3 {[%clk 0:02:30.1]} 13... Ne6 {[%clk 0:02:18.8]} 14. Nfd5
{[%clk 0:02:17.2]} 14... Nf8 {[%clk 0:02:13.2]} 15. Nb5 {[%clk 0:02:13.5]} 15...
Rc8 {[%clk 0:02:08.5]} 16. Bxg7 {[%clk 0:02:00.3]} 16... Kxg7 {[%clk 0:02:10.4]}
17. Rfd1 {[%clk 0:01:45.9]} 17... a6 {[%clk 0:02:08.6]} 18. Nbxc7 {[%clk
0:01:42]} 18... Rxc7 {[%clk 0:02:08.4]} 19. Nxc7 {[%clk 0:01:43.9]} 19... Qxc7
{[%clk 0:02:09.4]} 20. Qxd6 {[%clk 0:01:44.8]} 20... Qb6 {[%clk 0:01:43.8]} 21.
Bxc6 {[%clk 0:01:24.7]} 21... bxc6 {[%clk 0:01:38.5]} 22. Qd4+ {[%clk
0:01:23.8]} 22... Qxd4 {[%clk 0:01:38.6]} 23. Rxd4 {[%clk 0:01:25.7]} 23... Kf6
{[%clk 0:01:13.2]} 24. Rd6+ {[%clk 0:01:23.4]} 24... Re6 {[%clk 0:01:13.7]} 25.
Rxe6+ {[%clk 0:01:24.2]} 25... Kxe6 {[%clk 0:01:15.6]} 26. f3 {[%clk 0:01:24.7]}
26... Kd6 {[%clk 0:01:14.1]} 27. b4 {[%clk 0:01:20.8]} 27... Be6 {[%clk
0:01:13.9]} 28. Rd1+ {[%clk 0:01:20.5]} 28... Kc7 {[%clk 0:01:14.5]} 29. Rd4
{[%clk 0:01:16.7]} 29... c5 {[%clk 0:01:11.4]} 30. bxc5 {[%clk 0:01:16.4]} 30...
Nd7 {[%clk 0:01:12.3]} 31. h4 {[%clk 0:01:02.2]} 31... Nxc5 {[%clk 0:01:10.8]}
32. h5 {[%clk 0:01:03.2]} 32... Na4 {[%clk 0:01:10]} 33. h6 {[%clk 0:01:00.4]}
33... Nb6 {[%clk 0:01:10]} 34. c5 {[%clk 0:01:00.3]} 34... Nd7 {[%clk
0:01:11.1]} 35. c6 {[%clk 0:00:53.5]} 35... Kxc6 {[%clk 0:01:11.5]} 36. Rd2
{[%clk 0:00:54.2]} 36... a5 {[%clk 0:01:03.3]} 37. Kf2 {[%clk 0:00:48.3]} 37...
Kc5 {[%clk 0:01:00.4]} 38. Rc2+ {[%clk 0:00:45.5]} 38... Kb4 {[%clk 0:01:01.5]}
39. Rc8 {[%clk 0:00:45.5]} 39... Bxa2 {[%clk 0:00:56.7]} 40. Rh8 {[%clk
0:00:43.6]} 40... Nf6 {[%clk 0:00:53.7]} 41. g4 {[%clk 0:00:43.7]} 41... a4
{[%clk 0:00:53.1]} 42. g5 {[%clk 0:00:44.7]} 42... Nd7 {[%clk 0:00:44.9]} 43.
Rxh7 {[%clk 0:00:42.3]} 43... Bd5 {[%clk 0:00:45.5]} 44. Rxf7 {[%clk 0:00:35.5]}
44... Bxf7 {[%clk 0:00:42.4]} 45. h7 {[%clk 0:00:36.5]} 45... a3 {[%clk
0:00:37.2]} 46. h8=Q {[%clk 0:00:38.4]} 46... a2 {[%clk 0:00:37.4]} 47. Qb2+
{[%clk 0:00:31.2]} 47... Bb3 {[%clk 0:00:29.7]} 48. f4 {[%clk 0:00:19.5]} 48...
Nc5 {[%clk 0:00:24.4]} 49. Qd4+ {[%clk 0:00:20]} 49... Bc4 {[%clk 0:00:25.3]}
50. f5 {[%clk 0:00:18.5]} 50... Nb3 {[%clk 0:00:25.4]} 51. Qd6+ {[%clk
0:00:16.3]} 51... Ka4 {[%clk 0:00:14]} 52. Qc6+ {[%clk 0:00:15]} 52... Ka3
{[%clk 0:00:12.1]} 53. Qa8+ {[%clk 0:00:14.1]} 53... Kb2 {[%clk 0:00:13.1]} 54.
Qh8+ {[%clk 0:00:13]} 54... Kb1 {[%clk 0:00:13.9]} 55. Qh1+ {[%clk 0:00:12.7]}
55... Nc1 {[%clk 0:00:13.8]} 56. Kg3 {[%clk 0:00:12.7]} 56... a1=Q {[%clk
0:00:14.9]} 57. fxg6 {[%clk 0:00:12.9]} 57... Qe5+ {[%clk 0:00:15.5]} 58. Kf2
{[%clk 0:00:08.1]} 58... Qf5+ {[%clk 0:00:15.7]} 59. Qf3 {[%clk 0:00:08.2]}
59... Nd3+ {[%clk 0:00:15.7]} 60. Kg3 {[%clk 0:00:07.8]} 60... Qxg5+ {[%clk
0:00:16]} 61. Qg4 {[%clk 0:00:08.9]} 61... Qxe3+ {[%clk 0:00:15.5]} 62. Kh4
{[%clk 0:00:08.9]} 62... Be6 {[%clk 0:00:12.5]} 63. Qg3 {[%clk 0:00:05.9]} 63...
Qh6# {[%clk 0:00:12.5]} 0-1

[Event "*** Titled Tuesday Blitz"]
[Site "Chess.com"]
[Date "2019.08.06"]
[Round "5"]
[White "temus_galaktionov"]
[Black "GianmarcoVaR"]
[Result "1-0"]
[WhiteElo "2687"]
[BlackElo "2563"]
[TimeControl "180+2"]
[EndTime "14:06:31 PDT"]
[Termination "temus_galaktionov won by checkmate"]

1. d4 {[%clk 0:03:01.9]} 1... Nf6 {[%clk 0:02:45.3]} 2. Nf3 {[%clk 0:03:02.7]}
2... e6 {[%clk 0:02:46.6]} 3. c4 {[%clk 0:03:03]} 3... b6 {[%clk 0:02:47.7]} 4.
g3 {[%clk 0:03:03.6]} 4... Bb7 {[%clk 0:02:49]} 5. Bg2 {[%clk 0:03:04.3]} 5...
g6 {[%clk 0:02:50.3]} 6. Nc3 {[%clk 0:03:04.7]} 6... Ne4 {[%clk 0:02:50.7]} 7.
Nxe4 {[%clk 0:02:52.7]} 7... Bxe4 {[%clk 0:02:52]} 8. Bg5 {[%clk 0:02:53.8]}
8... Bb4+ {[%clk 0:02:36.2]} 9. Kf1 {[%clk 0:02:54.3]} 9... Be7 {[%clk
0:02:36.1]} 10. Bh6 {[%clk 0:02:54.5]} 10... d6 {[%clk 0:02:30.2]} 11. Nd2
{[%clk 0:02:54.5]} 11... Bxg2+ {[%clk 0:02:30.5]} 12. Kxg2 {[%clk 0:02:56.4]}
12... Bg5 {[%clk 0:02:26.5]} 13. Bxg5 {[%clk 0:02:48]} 13... Qxg5 {[%clk
0:02:28]} 14. h4 {[%clk 0:02:48.7]} 14... Qf6 {[%clk 0:02:12.5]} 15. Ne4 {[%clk
0:02:46.8]} 15... Qe7 {[%clk 0:02:10.7]} 16. h5 {[%clk 0:02:44.8]} 16... g5
{[%clk 0:02:02.4]} 17. Qa4+ {[%clk 0:02:45.1]} 17... c6 {[%clk 0:02:02.9]} 18.
c5 {[%clk 0:02:37.2]} 18... d5 {[%clk 0:01:25.6]} 19. Nd6+ {[%clk 0:02:34.3]}
19... Kf8 {[%clk 0:01:17.1]} 20. e4 {[%clk 0:02:35]} 20... Nd7 {[%clk
0:01:15.9]} 21. Qxc6 {[%clk 0:02:34.4]} 21... Kg7 {[%clk 0:01:15.9]} 22. h6+
{[%clk 0:02:34.3]} 22... Kg6 {[%clk 0:01:17.3]} 23. exd5 {[%clk 0:02:31.8]}
23... Nf6 {[%clk 0:01:07.6]} 24. dxe6 {[%clk 0:02:29.2]} 24... Qxe6 {[%clk
0:01:02.7]} 25. Rae1 {[%clk 0:02:29.4]} 25... Qxa2 {[%clk 0:01:03.7]} 26. Qf3
{[%clk 0:02:21]} 26... Qd5 {[%clk 0:01:02]} 27. Qxd5 {[%clk 0:02:15.2]} 27...
Nxd5 {[%clk 0:01:02.9]} 28. Re5 {[%clk 0:02:07.5]} 28... Nc7 {[%clk 0:00:58.9]}
29. Re7 {[%clk 0:02:05.8]} 29... Ne6 {[%clk 0:01:00.3]} 30. Rxf7 {[%clk
0:02:03]} 30... Rhf8 {[%clk 0:01:01.9]} 31. Rg7+ {[%clk 0:02:02.9]} 31... Nxg7
{[%clk 0:01:02.5]} 32. hxg7 {[%clk 0:02:03.6]} 32... Kxg7 {[%clk 0:01:04.4]} 33.
b4 {[%clk 0:01:48.5]} 33... Rad8 {[%clk 0:00:52.2]} 34. Ra1 {[%clk 0:01:47.6]}
34... Rd7 {[%clk 0:00:50.9]} 35. Nb5 {[%clk 0:01:47.5]} 35... Rdf7 {[%clk
0:00:36.3]} 36. Rxa7 {[%clk 0:01:40]} 36... bxc5 {[%clk 0:00:26.3]} 37. dxc5
{[%clk 0:01:40]} 37... Rb8 {[%clk 0:00:25.1]} 38. Ra5 {[%clk 0:00:57.9]} 38...
g4 {[%clk 0:00:21.3]} 39. Nd6 {[%clk 0:00:51.3]} 39... Rd7 {[%clk 0:00:17.3]}
40. Ra4 {[%clk 0:00:50]} 40... Rc7 {[%clk 0:00:12.9]} 41. Kf1 {[%clk 0:00:47]}
41... Kf6 {[%clk 0:00:12.6]} 42. Ke2 {[%clk 0:00:47.4]} 42... Ke5 {[%clk
0:00:13.9]} 43. Kd3 {[%clk 0:00:48.6]} 43... Kd5 {[%clk 0:00:15.2]} 44. Nc4
{[%clk 0:00:42.7]} 44... h5 {[%clk 0:00:14.1]} 45. Ne3+ {[%clk 0:00:42.9]} 45...
Ke5 {[%clk 0:00:15.4]} 46. Kc4 {[%clk 0:00:43.5]} 46... Rd8 {[%clk 0:00:12.2]}
47. Ra2 {[%clk 0:00:38.5]} 47... Rd4+ {[%clk 0:00:11.6]} 48. Kc3 {[%clk
0:00:39.5]} 48... Ke4 {[%clk 0:00:09.9]} 49. Ra6 {[%clk 0:00:30.2]} 49... Rd3+
{[%clk 0:00:05.6]} 50. Kc4 {[%clk 0:00:31.5]} 50... Rd2 {[%clk 0:00:04.4]} 51.
Re6+ {[%clk 0:00:31.2]} 51... Kf3 {[%clk 0:00:05.7]} 52. Rf6+ {[%clk 0:00:32.1]}
52... Ke2 {[%clk 0:00:07.1]} 53. b5 {[%clk 0:00:33]} 53... Ra2 {[%clk
0:00:04.8]} 54. c6 {[%clk 0:00:33.5]} 54... Rc8 {[%clk 0:00:04.8]} 55. b6 {[%clk
0:00:33.9]} 55... Ra6 {[%clk 0:00:06.3]} 56. Kb5 {[%clk 0:00:34]} 56... Ra1
{[%clk 0:00:07.1]} 57. b7 {[%clk 0:00:34.1]} 57... Rc7 {[%clk 0:00:07]} 58. Kb6
{[%clk 0:00:34.7]} 58... Re7 {[%clk 0:00:08.4]} 59. Nd5 {[%clk 0:00:29.5]} 59...
Rb1+ {[%clk 0:00:06.5]} 60. Kc5 {[%clk 0:00:30]} 60... Re5 {[%clk 0:00:04.2]}
61. Kd6 {[%clk 0:00:29.4]} 61... Re4 {[%clk 0:00:02.8]} 62. c7 {[%clk
0:00:29.1]} 62... Rd4 {[%clk 0:00:02.5]} 63. b8=Q {[%clk 0:00:28.1]} 63... Kf1
{[%clk 0:00:04.4]} 64. Qxb1+ {[%clk 0:00:28]} 64... Kg2 {[%clk 0:00:06.3]} 65.
Qb6 {[%clk 0:00:28.1]} 65... h4 {[%clk 0:00:07.6]} 66. gxh4 {[%clk 0:00:27.3]}
66... g3 {[%clk 0:00:08.7]} 67. Qxd4 {[%clk 0:00:26.1]} 67... Kh2 {[%clk
0:00:08.2]} 68. fxg3 {[%clk 0:00:26]} 68... Kh3 {[%clk 0:00:09.3]} 69. g4 {[%clk
0:00:27]} 69... Kg2 {[%clk 0:00:10.3]} 70. Qe3 {[%clk 0:00:25.5]} 70... Kh2
{[%clk 0:00:11.3]} 71. Rf2+ {[%clk 0:00:26.5]} 71... Kh1 {[%clk 0:00:12.4]} 72.
Qe1# {[%clk 0:00:28.4]} 1-0